Cogmind - Beta 16.1 @@@ ROGUE MODE // 2026.02.22 @ 17:54:09 Player: Zish Result: Destroyed by NL-O8P(R) with Subdweller Beam Cannon Performance ------------- Evolutions (0) 0 Regions Visited (3) 600 Robots Destroyed (29) 145 Value Destroyed (601) 601 Prototype IDs (0) 0 Alien Tech Used (0) 0 Bonus (0) 0 TOTAL SCORE: 1346 Bonus ------- None Cogmind --------- Core Integrity 0/250 Matter 242/300 Energy 100/100 System Corruption 3% Temperature Cool (9) Movement Treading (240) Ox1 Location -10/Subcaves Parts ------- > --- POWER (1) -------- (None) > --- PROPULSION (2) --- Light Treads Light Treads > --- UTILITY (2) ------ High-capacity Storage Unit > --- WEAPON (2) ------- Heavy Assault Rifle Heavy Assault Rifle > --- INVENTORY (20) --- Ion Engine Light Nuclear Core Light Treads Transport Network Coupler Hacking Suite Beam Cannon Heavy Assault Rifle Heavy Assault Rifle Light Cannon Light Cannon Light Cannon Light Cannon Light Cannon Light Cannon Rocket Launcher Datajack Hammer Peak State ------------ > --- POWER ------------ Light Nuclear Core > --- PROPULSION ------- Light Treads Light Treads > --- UTILITY ---------- High-capacity Storage Unit Medium Armor Plating > --- WEAPON ----------- Heavy Assault Rifle Heavy Assault Rifle > --- INVENTORY -------- Ion Engine Light Nuclear Core Hacking Suite Beam Cannon Heavy Assault Rifle Heavy Assault Rifle Light Cannon Light Cannon Light Cannon Light Cannon Light Cannon Light Cannon Datajack Hammer [Rating: 14] Favorites ----------- Power Light Nuclear Core Engine Light Ion Engine Power Core Light Nuclear Core Propulsion Light Treads Treads Light Treads Utility High-capacity Storage Unit Storage High-capacity Storage Unit Protection Medium Armor Plating Weapon Heavy Assault Rifle Energy Gun Medium Laser Ballistic Gun Heavy Assault Rifle Build | -11 -10 -10 -10 ------- Run | Yrd Mat Min Sub Slots Evolved . | . . . . Power . | . . . . Propulsion . | . . . . Utility . | . . . . Weapon . | . . . . Parts Attached 16 | 7 9 . . Power 2 | 1 1 . . Engine 1 | 1 . . . Core 1 | . 1 . . Reactor . | . . . . Propulsion 3 | 2 1 . . Treads 3 | 2 1 . . Leg . | . . . . Wheel . | . . . . Hover . | . . . . Flight . | . . . . Utility 4 | 1 3 . . Device . | . . . . Storage 3 | 1 2 . . Processor . | . . . . Hackware . | . . . . Protection 1 | . 1 . . Artifact . | . . . . Weapon 7 | 3 4 . . Energy Gun 5 | 3 2 . . Energy Cannon . | . . . . Ballistic Gun 2 | . 2 . . Ballistic Cannon . | . . . . Launcher . | . . . . Special Weapon . | . . . . Impact Weapon . | . . . . Slashing Weapon . | . . . . Piercing Weapon . | . . . . Special Melee Weapon . | . . . . Unidentified Prototypes . | . . . . Parts Lost 6 | . 4 . 2 Power 2 | . 1 . 1 Propulsion 1 | . 1 . . Utility 1 | . . . 1 Weapon 2 | . 2 . . Highest Loss Streak 2 | . 2 . 2 To Critical Strikes . | . . . . Average Backups 11 | 1 7 16 17 Power 1 | . 1 2 2 Propulsion . | . . 1 1 Utility 1 | . . 2 2 Weapon 7 | . 4 10 11 Tool/Special . | . . . . Unused Backups 16 | . 1 . 15 Power 2 | . . . 2 Propulsion . | . . . . Utility 1 | . . . 1 Weapon 11 | . . . 11 Tool/Special 2 | . 1 . 1 Average Slot Usage (%) 95 | . 92 100 92 Engine 6 | . 11 . . Core 7 | . 2 14 9 Treads 27 | . 27 28 28 Storage 14 | . 14 14 14 Protection 10 | . 7 14 11 Energy Gun 7 | . 13 . . Ballistic Gun 20 | . 14 28 28 Peak Build Rating 14 | 6 14 14 14 Average Rating 11 | 4 9 14 12 On Entrance 8 | . 6 14 14 Avg Prop Armor Cover (%) . | . . . . Naked Turns . | . . . . Heaviest Build 58 | 12 58 58 58 Greatest Support 40 | 40 40 40 40 Greatest Overweight (x) 1 | . 1 1 1 Average Overweight (x) . | . . 1 1 Largest Inventory Capacity 20 | 8 20 20 20 Average Capacity 17 | 6 15 20 20 Most Carried 17 | 3 16 17 17 Average Carried 11 | 1 7 16 17 Final Capacity 20 | 8 20 20 20 Final Carried 17 | 2 16 17 17 Class Distribution -------------------- 100% | Mutant Dominant Class ---------------- Mutant | -10/Materials Mutant | -10/Mines Mutant | -10/Subcaves Resources | -11 -10 -10 -10 ----------- Run | Yrd Mat Min Sub Matter Collected 544 | 193 306 45 . Remotely . | . . . . Salvage Created 1004 | . 954 50 . Parts 54 | . 47 7 . Haulers Intercepted 2 | . 2 . . Recyclers Shooed 1 | . 1 . . Parts Field Recycled . | . . . . Retrieved Matter . | . . . . Parts Self-Destructed . | . . . . Prevented . | . . . . Parts Restored . | . . . . Kills | -11 -10 -10 -10 ------- Run | Yrd Mat Min Sub Combat Hostiles Destroyed 17 | . 14 3 . Guns 15 | . 12 3 . AOE 1 | . 1 . . Classes Destroyed 8 | . 8 . . Worker 2 | . 1 1 . Tunneler 1 | . 1 . . Hauler 2 | . 2 . . Recycler 2 | . 2 . . Operator 2 | . 2 . . Watcher 3 | . 3 . . Swarmer 6 | . 3 3 . Grunt 11 | . 11 . . Best Kill Streak 4 | . 4 3 . Combat Bots Only 3 | . 3 3 . Max Kills in Single Turn 2 | . 2 2 . Gunslinging 1 | . . 1 . Exploded 1 | . 1 . . Melee . | . . . . Uniques/NPCs Destroyed . | . . . . Combat | -11 -10 -10 -10 -------- Run | Yrd Mat Min Sub Hostile Shots Fired 94 | . 69 3 22 Missed 27 | . 23 . 4 Hits 67 | . 46 3 18 Projectile 67 | . 46 3 18 Critical Strikes 1 | . 1 . . Damage Taken 1058 | . 585 23 450 Core 268 | . 66 15 187 Absorbed by Shields . | . . . . Core Remaining (%) 100 | 100 . . . Volleys Fired 73 | . 61 3 9 Largest 2 | . 2 2 2 Hottest 100 | . 100 46 46 Shots Fired 149 | . 124 7 18 Gun 149 | . 124 7 18 Cannon . | . . . . Launcher . | . . . . Special . | . . . . Kinetic 61 | . 36 7 18 Thermal 58 | . 58 . . Explosive . | . . . . Electromagnetic 30 | . 30 . . Robot Hit Streak 13 | . 10 7 13 Robot Miss Streak 3 | . 3 . 1 Penetration Max . | . . . . Secondary Targets 3 | . 2 1 . Max Gunslinging Chain 1 | . 1 1 . Shots Hit Robots 101 | . 79 6 16 Core Hits 48 | . 42 4 2 Critical Kills 1 | . 1 . . Critical Parts Destroyed . | . . . . Critical Strikes 5 | . 5 . . Burn 4 | . 4 . . Destroy 1 | . 1 . . Melee Attacks . | . . . . Impact . | . . . . Slashing . | . . . . Piercing . | . . . . Sneak Attacks . | . . . . Combat Hostiles . | . . . . Follow-up Attacks . | . . . . Damage Inflicted 1559 | . 1232 95 232 Guns 1474 | . 1147 95 232 Cannons . | . . . . Explosions 85 | . 85 . . Melee . | . . . . Ramming . | . . . . Kinetic 630 | . 303 95 232 Thermal 649 | . 649 . . Explosive . | . . . . Electromagnetic 280 | . 280 . . Impact . | . . . . Slashing . | . . . . Piercing . | . . . . Highest Corruption 3 | . 3 3 3 Average Corruption 2 | . 1 3 3 Corruption Purged . | . . . . Corruption Blocked . | . . . . Effects 29 | . 8 21 . Message Errors 4 | . 1 3 . Matter Fused 7 | . 2 5 . Heat Flow Errors 5 | . 1 4 . Energy Discharges 4 | . 1 3 . Data Loss (minor) 2 | . 1 1 . Data Loss (major) 4 | . . 4 . Misfires 3 | . 2 1 . Overload Shots . | . . . . Overflow Damage . | . . . . Projectiles . | . . . . Explosions . | . . . . Melee . | . . . . Knockbacks . | . . . . Impact . | . . . . Kinetic . | . . . . Secondary . | . . . . Self-Inflicted Damage . | . . . . Shots . | . . . . Rammed . | . . . . Targets Rammed . | . . . . Kicked . | . . . . Crushed . | . . . . Highest Temperature 284 | . 284 281 . Average Temperature 93 | . 85 121 . Received Heat Transfer 450 | . 309 . 141 Effects 1 | . . 1 . Energy Bleed 1 | . . 1 . Siege Activations . | . . . . Martial Activations . | . . . . Shielding Activations . | . . . . Robots Disrupted . | . . . . Combat Hostiles . | . . . . Robots Corrupted . | . . . . Combat Hostiles . | . . . . Parts Fried . | . . . . Impact Corruptions . | . . . . Robots Melted 1 | . 1 . . Combat Hostiles 1 | . 1 . . Parts Melted 4 | . 4 . . Heat Transferred 2011 | . 2011 . . Parts Sabotaged . | . . . . Parts Stolen . | . . . . Parts Stripped . | . . . . Power Chain Reactions 1 | . 1 . . Alert | -11 -10 -10 -10 ------- Run | Yrd Mat Min Sub Maximum Alert Level . | . . . . Low Security (%) 100 | 100 100 100 . Level 1 . | . . . . Level 2 . | . . . . Level 3 . | . . . . Level 4 . | . . . . Level 5 . | . . . . High Security . | . . . . Max Security . | . . . . Peak Influence 98 | . 98 60 . Initial 28 | . . 28 . Average 20 | . 33 5 . Influence Increases 524 | . 449 75 . Destroy 0b10 Robot/C 340 | . 280 60 . Destroy 0b10 Robot/NC 60 | . 55 5 . Destroy Leader 90 | . 80 10 . Successful Hack 14 | . 14 . . Disable Machine 15 | . 15 . . Destroy Structure 5 | . 5 . . Influence Decreases 524 | . 376 148 . Entered New Map 45 | . . 45 . Time Decay 439 | . 336 103 . Lost Part 40 | . 40 . . Squads Dispatched 2 | . 2 . . Investigation . | . . . . Extermination . | . . . . Reinforcement 2 | . 2 . . Assault . | . . . . Garrison . | . . . . Intercept . | . . . . Searches Triggered . | . . . . Construction Impeded . | . . . . Haulers Reinforced . | . . . . Active Scanning Responses . | . . . . Cargo Convoy Interrupts . | . . . . Stealth | -11 -10 -10 -10 --------- Run | Yrd Mat Min Sub Distress Signals 1 | . . 1 . Communications Jammed . | . . . . Distress Signals . | . . . . Times Spotted 29 | . 24 3 2 Peak Tracking Total 5 | . 5 1 2 Tactical Retreats . | . . . . Traps | -11 -10 -10 -10 ------- Run | Yrd Mat Min Sub Traps Triggered 2 | . 2 . . Indirectly . | . . . . Trap Hack Attempts . | . . . . Triggered . | . . . . Disarmed . | . . . . Reprogrammed . | . . . . Reused . | . . . . Traps Extracted . | . . . . Installed . | . . . . Triggered . | . . . . Machines | -11 -10 -10 -10 ---------- Run | Yrd Mat Min Sub Machines Disabled 1 | . 1 . . Max in Single Turn 1 | . 1 . . Machines Repaired . | . . . . Machines Dismantled . | . . . . Machines Sabotaged . | . . . . Overloaded Fab Kills . | . . . . Hacking | -11 -10 -10 -10 --------- Run | Yrd Mat Min Sub Machines Accessed 2 | . 2 . . Terminals 1 | . 1 . . Fabricators . | . . . . Repair Stations . | . . . . Recycling Units 1 | . 1 . . Scanalyzers . | . . . . Garrison Access . | . . . . Total Hacks 4 | . 4 . . Successful 3 | . 3 . . Failed 1 | . 1 . . Catastrophic . | . . . . Database Lockouts . | . . . . Manual 3 | . 3 . . Terminals 3 | . 3 . . Fabricators . | . . . . Repair Stations . | . . . . Recycling Units 1 | . 1 . . Scanalyzers . | . . . . Garrison Access . | . . . . Terminal Hacks 1 | . 1 . . Branch Access Points 1 | . 1 . . Fabricator Hacks . | . . . . Repair Station Hacks . | . . . . Recycling Unit Hacks 1 | . 1 . . Report Inventory 1 | . 1 . . Scanalyzer . | . . . . Garrison Access Hacks . | . . . . Unauthorized Hacks 1 | . 1 . . Terminals 1 | . 1 . . Operators 1 | . 1 . . Fabricators . | . . . . Repair Stations . | . . . . Recycling Units . | . . . . Scanalyzers . | . . . . Garrison Access . | . . . . Data Cores Recovered . | . . . . Used . | . . . . Hacking Detections 1 | . 1 . . Full Trace Events . | . . . . Feedback Events . | . . . . Feedback Blocked . | . . . . Robot Schematics Acquired . | . . . . Robots Built . | . . . . Authchips . | . . . . Time . | . . . . Total Robot Build Rating . | . . . . Part Schematics Acquired . | . . . . Parts Built . | . . . . Authchips . | . . . . Time . | . . . . Total Part Build Rating . | . . . . Part Studies Acquired . | . . . . Parts Repaired . | . . . . Time . | . . . . Parts Recycled . | . . . . Recycled Matter . | . . . . Retrieved Matter . | . . . . Retrieved Components . | . . . . Parts Scanalyzed . | . . . . Part Schematics Acquired . | . . . . Parts Damaged . | . . . . Bothacking | -11 -10 -10 -10 ------------ Run | Yrd Mat Min Sub Used RIF Installer . | . . . . Robots Hacked . | . . . . Non-combat . | . . . . Combat . | . . . . Robot Hacks Applied . | . . . . Relay Couplers Released . | . . . . Fabnet Peak Effective % . | . . . . Robots Rewired . | . . . . Allies Hacked . | . . . . Hacks Repelled . | . . . . Allies | -11 -10 -10 -10 -------- Run | Yrd Mat Min Sub Total Allies . | . . . . Largest Group . | . . . . Highest-Rated Group . | . . . . Highest-Rated Ally . | . . . . Total Orders . | . . . . Ally Attacks . | . . . . Total Damage . | . . . . Kills . | . . . . Allies Corrupted . | . . . . Allies Melted . | . . . . Intel | -11 -10 -10 -10 ------- Run | Yrd Mat Min Sub Active Infowar (turns) . | . . . . Robot Analysis Total . | . . . . Derelict Logs Recovered 1 | . . 1 . Drone Launches . | . . . . Drone Recoveries . | . . . . Exploration | -11 -10 -10 -10 ------------- Run | Yrd Mat Min Sub Turns Passed 3122 | 79 1670 1326 47 Spaces Moved 1304 | 46 701 549 8 Core 5 | 5 . . . Treads 1299 | 41 701 549 8 Legs . | . . . . Wheels . | . . . . Hover . | . . . . Flight . | . . . . Fastest Speed 50 | 50 160 240 240 Average Speed 218 | 148 206 240 240 Slowest Speed 240 | 160 240 240 240 Overloaded Moves . | . . . . Propulsion Burnouts . | . . . . Robots Hopped . | . . . . Potential Cave-ins . | . . . . Cave-ins Triggered . | . . . . Exploration Rate (%) 40 | 3 82 75 2 Regions Visited 3 Branch Regions 2 Pre-discovered Areas . | . . . . Known Exits Taken 1 | . 1 . . Unknown Exits Taken 2 | 1 . 1 . Scrap Searched 1 | . . 1 . Spaces Dug . | . . . . Terrain Destroyed 5 | . 5 . . Melee . | . . . . Projectile . | . . . . AOE 5 | . 5 . . Terrain Rammed . | . . . . Walls Destroyed . | . . . . Machines Disabled . | . . . . Actions | -11 -10 -10 -10 --------- Run | Yrd Mat Min Sub Total 1428 | 55 804 552 17 Wait 1 | . 1 . . Move 1301 | 45 700 548 8 Hop . | . . . . Pick Up 22 | 2 19 1 . Fast Attach 12 | 6 6 . . Attach 6 | 1 5 . . Detach 7 | 1 6 . . Swap . | . . . . Drop 6 | . 6 . . Fire 73 | . 61 3 9 Melee . | . . . . Ram . | . . . . Kick . | . . . . Crush . | . . . . Escape Stasis . | . . . . Rewire . | . . . . Trap . | . . . . Miscellaneous . | . . . . Route ------- -11/Scrapyard -10/Materials (discovered 4 exits: [*Mat x3] / *Min) -10/Mines (discovered 2 exits: [*Exi] / [*Sub]) -10/Subcaves History --------- Turn | Location | Event 5 | -11/Scrapyard | Discovered new exit (range 15) 80 | -11/Scrapyard | Entered Materials 231 | -10/Materials | Discovered new exit (range 11) 306 | -10/Materials | Build established: Mutant 631 | -10/Materials | Discovered new exit (range 5) 793 | -10/Materials | Discovered new exit (range 8) 1437 | -10/Materials | Identified exit to Mines 1750 | -10/Materials | Entered Mines 1757 | -10/Mines | Received a Rocket Launcher from a helpful Derelict 1797 | -10/Mines | Learned Materials stockpile data 2198 | -10/Mines | Assembled infested the area 2240 | -10/Mines | Met 8R-AWN 2418 | -10/Mines | Discovered new exit (range 5) 3020 | -10/Mines | Discovered new exit (range 8) 3076 | -10/Mines | Entered Subcaves 3116 | -10/Subcaves | Core integrity fell below 50% 3122 | -10/Subcaves | Core integrity fell below 20% 3123 | -10/Subcaves | Destroyed by NL-O8P(R) with Subdweller Beam Cannon Last Messages --------------- 02458_ System corrupted: Substantial component data lost. 02512_ System corrupted: FCS attempts to trigger Hvy. Assault Rifle. 02512_ System corrupted: Hvy. Assault Rifle misfires. 02568_ System corrupted: Matter fused (-6). 02668_ F/KHAJ:CWUKSZ><